[Event "Cracovia Festival-A 2023"]
[Site "Krakow"]
[Date "2023.12.29"]
[Round "3.23"]
[White "Luczak, Filip"]
[Black "Eke, Salih"]
[Result "0-1"]
[ECO "A00"]
[WhiteElo "2319"]
[BlackElo "2217"]
[Annotator "ChessBase"]
[PlyCount "72"]
[EventDate "2023.12.24"]
[EventType "swiss"]
[EventCountry "POL"]
[SourceTitle "playchess.com"]
[Source "ChessBase"]
[SourceQuality "1"]
[TimeControl "40/5400+30:1800+30"]

1. Nc3 {[%emt 0:00:02]} d5 {[%emt 0:10:59]} 2. e4 {[%emt 0:00:46]} dxe4 {[%emt 0:05:02]} 3. Nxe4 {[%emt 0:00:07]} e5 {[%emt 0:02:22]} 4. Nf3 {[%emt 0:03:22]} Nf6 {[%emt 0:01:35]} 5. Qe2 {[%emt 0:05:57]} Nc6 {[%emt 0:02:11]} 6. Nxf6+ {[%emt 0:02:05]} Qxf6 {[%emt 0:06:36]} 7. d4 {[%emt 0:03:35]} Bd6 {[%emt 0:00:08]} 8. dxe5 {[%emt 0:18:47]} Nxe5 {[%emt 0:00:16]} 9. Bg5 {[%emt 0:01:58]} Qf5 {[%emt 0:10:20]} 10. Nxe5 {[%emt 0:03:37]} Qxg5 {[%emt 0:12:01]} 11. Ng6+ {[%emt 0:05:37]} Be6 {[%emt 0:00:08]} 12. Nxh8 {[%emt 0:00:10]} O-O-O {[%emt 0:00:41]} 13. g3 {[%emt 0:10:02]} Re8 {[%emt 0:20:53]} 14. Bh3 {[%emt 0:03:02]} Kd7 {[%emt 0:00:16]} 15. O-O {[%emt 0:20:12]} Bxh3 {[%emt 0:00:14]} 16. Qf3 {[%emt 0:05:58]} Rxh8 {[%emt 0:00:04]} 17. Rfe1 {[%emt 0:00:10]} Kc8 {[%emt 0:00:29]} 18. Qxf7 {[%emt 0:01:35]} Bd7 {[%emt 0:01:28]} 19. Rad1 {[%emt 0:00:28]} Rf8 {[%emt 0:00:42]} 20. Qc4 {[%emt 0:01:12]} Bc5 {[%emt 0:05:00]} 21. Rxd7 {[%emt 0:10:18]} Kxd7 {[%emt 0:00:40]} 22. Qe6+ {[%emt 0:00:05]} Kd8 {[%emt 0:00:03]} 23. Re5 {[%emt 0:01:39]} Qc1+ {[%emt 0:03:17]} 24. Kg2 {[%emt 0:00:01]} Rxf2+ {[%emt 0:02:28]} 25. Kh3 {[%emt 0:00:02]} Qf1+ {[%emt 0:00:11]} 26. Kg4 {[%emt 0:00:11]} h5+ {[%emt 0:00:19]} 27. Kg5 {[%emt 0:01:48]} Qc1+ {[%emt 0:00:08]} 28. Kxh5 {[%emt 0:00:40]} Rxh2+ {[%emt 0:00:13]} 29. Kg4 {[%emt 0:00:31]} Qd1+ {[%emt 0:00:05]} 30. Kf4 {[%emt 0:00:37]} Qf1+ {[%emt 0:01:25]} 31. Ke4 {[%emt 0:00:45]} Qg2+ {[%emt 0:01:19]} 32. Kf4 {[%emt 0:00:10]} Qf1+ {[%emt 0:02:19]} 33. Ke4 {[%emt 0:00:01]} Re2+ {[%emt 0:01:20]} 34. Kd5 {[%emt 0:00:06]} Rxe5+ {[%emt 0:00:04]} 35. Qxe5 {[%emt 0:00:04]} Qf8 {[%emt 0:00:23]} 36. Kc4 {[%emt 0:00:34]} Bd6 {[%emt 0:00:21]} 0-1

[Event "Cracovia Festival-A 2023"]
[Site "Krakow"]
[Date "2023.12.29"]
[Round "3.24"]
[White "Suder, Jakub"]
[Black "Hryharovich, Aliaksei"]
[Result "1/2-1/2"]
[ECO "D31"]
[WhiteElo "2312"]
[BlackElo "2195"]
[Annotator "ChessBase"]
[PlyCount "87"]
[EventDate "2023.12.24"]
[EventType "swiss"]
[EventCountry "POL"]
[SourceTitle "playchess.com"]
[Source "ChessBase"]
[SourceQuality "1"]
[TimeControl "40/5400+30:1800+30"]

1. d4 {[%emt 0:00:15]} d5 {[%emt 0:00:13]} 2. c4 {[%emt 0:00:08]} e6 {[%emt 0:00:07]} 3. Nc3 {[%emt 0:00:04]} Be7 {[%emt 0:00:07]} 4. cxd5 {[%emt 0:00:24]} exd5 {[%emt 0:00:19]} 5. Bf4 {[%emt 0:00:27]} c6 6. Qc2 Nf6 {[%emt 0:01:20]} 7. e3 {[%emt 0:01:12]} Bg4 {[%emt 0:00:23]} 8. Nge2 {[%emt 0:06:02]} Nbd7 {[%emt 0:05:53]} 9. f3 {[%emt 0:05:02]} Bh5 {[%emt 0:01:27]} 10. Bg3 {[%emt 0:01:28]} Bg6 {[%emt 0:03:49]} 11. Qd2 {[%emt 0:00:36]} O-O {[%emt 0:14:01]} 12. Bf2 {[%emt 0:03:15]} h5 {[%emt 0:11:11]} 13. h3 {[%emt 0:02:44]} Bd6 {[%emt 0:04:44]} 14. g4 {[%emt 0:02:15]} Nb6 {[%emt 0:01:02]} 15. Nf4 {[%emt 0:07:51]} Bh7 {[%emt 0:07:39]} 16. Be2 {[%emt 0:07:30]} Re8 {[%emt 0:04:35]} 17. Kf1 {[%emt 0:02:11]} c5 {[%emt 0:15:19]} 18. Nb5 {[%emt 0:10:52]} Nc4 {[%emt 0:11:29]} 19. Bxc4 {[%emt 0:03:28]} dxc4 {[%emt 0:00:12]} 20. Nxd6 {[%emt 0:07:51]} Qxd6 {[%emt 0:00:25]} 21. g5 {[%emt 0:02:09]} Nd7 {[%emt 0:00:50]} 22. Rd1 {[%emt 0:03:53]} Rad8 {[%emt 0:07:12]} 23. Kg2 {[%emt 0:09:54]} Ne5 {[%emt 0:01:58]} 24. Rhe1 {[%emt 0:03:05]} cxd4 {[%emt 0:04:47]} 25. exd4 {[%emt 0:01:36]} Nd3 {[%emt 0:00:15]} 26. Nxd3 {[%emt 0:05:55]} cxd3 {[%emt 0:00:44]} 27. Qa5 {[%emt 0:01:41]} a6 {[%emt 0:01:20]} 28. h4 {[%emt 0:00:54]} Re2 {[%emt 0:01:59]} 29. Rxe2 {[%emt 0:02:47]} dxe2 {[%emt 0:00:04]} 30. Re1 {[%emt 0:00:09]} Re8 {[%emt 0:01:15]} 31. Qc3 {[%emt 0:01:03]} Bf5 {[%emt 0:00:42]} 32. Qd2 {[%emt 0:01:09]} Qe7 {[%emt 0:00:33]} 33. Bg3 {[%emt 0:00:28]} Bd7 {[%emt 0:00:30]} 34. b3 {[%emt 0:01:12]} Qe6 {[%emt 0:00:27]} 35. Kf2 {[%emt 0:00:39]} Qd5 {[%emt 0:00:37]} 36. Rxe2 {[%emt 0:01:36]} Rxe2+ {[%emt 0:00:12]} 37. Kxe2 {[%emt 0:00:11]} Bc6 {[%emt 0:00:07]} 38. Qc3 {[%emt 0:02:00]} Qe6+ {[%emt 0:00:40]} 39. Kf2 {[%emt 0:00:19]} Qf5 {[%emt 0:00:20]} 40. Qe3 {[%emt 0:00:00]} Qc2+ {[%emt 0:00:00]} 41. Qe2 {[%emt 0:03:14]} Qxe2+ {[%emt 0:04:12]} 42. Kxe2 {[%emt 0:00:04]} Kf8 {[%emt 0:00:53]} 43. Be5 {[%emt 0:00:29]} g6 {[%emt 0:00:15]} 44. Bf6 {[%emt 0:00:31]} 1/2-1/2

[Event "Cracovia Festival-A 2023"]
[Site "Krakow"]
[Date "2023.12.29"]
[Round "3.25"]
[White "Flak, Pawel"]
[Black "Yezhel, Valiantsin"]
[Result "1/2-1/2"]
[ECO "A80"]
[WhiteElo "2145"]
[BlackElo "2311"]
[Annotator "ChessBase"]
[PlyCount "96"]
[EventDate "2023.12.24"]
[EventType "swiss"]
[EventCountry "POL"]
[SourceTitle "playchess.com"]
[Source "ChessBase"]
[SourceQuality "1"]
[TimeControl "40/5400+30:1800+30"]

1. d4 {[%emt 0:00:02]} f5 {[%emt 0:02:42]} 2. g4 {[%emt 0:00:02]} fxg4 {[%emt 0:00:24]} 3. h3 {[%emt 0:00:01]} g3 {[%emt 0:10:50]} 4. fxg3 {[%emt 0:00:02]} d5 {[%emt 0:00:08]} 5. Bg2 {[%emt 0:01:02]} Nf6 {[%emt 0:00:07]} 6. Bf4 {[%emt 0:00:27]} e6 {[%emt 0:02:04]} 7. e3 {[%emt 0:00:51]} Bd6 {[%emt 0:02:04]} 8. Nd2 {[%emt 0:08:59]} c5 {[%emt 0:01:22]} 9. c3 {[%emt 0:00:58]} Nc6 {[%emt 0:00:05]} 10. Ngf3 {[%emt 0:01:48]} O-O {[%emt 0:00:07]} 11. Qe2 {[%emt 0:05:09]} Qe7 {[%emt 0:00:21]} 12. Ne5 {[%emt 0:02:33]} Bxe5 {[%emt 0:08:48]} 13. dxe5 {[%emt 0:01:21]} Nd7 {[%emt 0:00:04]} 14. Nf3 {[%emt 0:00:19]} c4 {[%emt 0:02:19]} 15. O-O {[%emt 0:03:16]} Nc5 {[%emt 0:01:01]} 16. Rad1 {[%emt 0:03:03]} Bd7 {[%emt 0:03:15]} 17. Nd4 {[%emt 0:08:28]} Be8 {[%emt 0:06:56]} 18. e4 {[%emt 0:07:57]} Nxd4 {[%emt 0:07:00]} 19. Rxd4 {[%emt 0:01:11]} Nxe4 {[%emt 0:00:06]} 20. Bxe4 {[%emt 0:00:13]} dxe4 {[%emt 0:00:03]} 21. Qxc4 {[%emt 0:05:30]} Bc6 {[%emt 0:01:14]} 22. Rd6 {[%emt 0:01:18]} Bd5 {[%emt 0:02:02]} 23. Qd4 {[%emt 0:04:41]} g5 {[%emt 0:12:19]} 24. Be3 {[%emt 0:11:51]} Rxf1+ {[%emt 0:00:06]} 25. Kxf1 {[%emt 0:00:01]} Rf8+ {[%emt 0:00:20]} 26. Ke1 {[%emt 0:00:01]} Qf7 {[%emt 0:01:23]} 27. c4 {[%emt 0:00:48]} Qf1+ {[%emt 0:06:25]} 28. Kd2 {[%emt 0:00:01]} Bxc4 {[%emt 0:05:03]} 29. Rd8 {[%emt 0:03:14]} Qe2+ {[%emt 0:05:51]} 30. Kc3 {[%emt 0:00:13]} Bd5 {[%emt 0:00:08]} 31. Rxf8+ {[%emt 0:06:27]} Kxf8 {[%emt 0:00:09]} 32. Bxg5 {[%emt 0:00:13]} Qe1+ {[%emt 0:01:56]} 33. Kc2 {[%emt 0:12:16]} Qxg3 {[%emt 0:02:24]} 34. Qc5+ {[%emt 0:09:06]} Kg8 {[%emt 0:00:14]} 35. Bf6 {[%emt 0:00:00]} Qd3+ {[%emt 0:13:53]} 36. Kc1 {[%emt 0:00:01]} Qf1+ {[%emt 0:01:46]} 37. Kd2 {[%emt 0:00:33]} Bc6 {[%emt 0:01:54]} 38. Qe3 {[%emt 0:02:55]} Kf7 {[%emt 0:00:47]} 39. Qg5 {[%emt 0:01:28]} Qf2+ {[%emt 0:01:29]} 40. Kd1 {[%emt 0:00:00]} Qf1+ {[%emt 0:00:00]} 41. Kc2 {[%emt 0:03:11]} Qe2+ {[%emt 0:00:59]} 42. Kc1 {[%emt 0:00:38]} Qc4+ {[%emt 0:06:07]} 43. Kb1 {[%emt 0:00:12]} Qd3+ {[%emt 0:01:50]} 44. Kc1 {[%emt 0:00:03]} Qf1+ {[%emt 0:00:56]} 45. Kc2 {[%emt 0:00:55]} Qd3+ {[%emt 0:01:02]} 46. Kc1 {[%emt 0:00:02]} Qf1+ {[%emt 0:00:17]} 47. Kc2 {[%emt 0:00:04]} Qd3+ {[%emt 0:00:05]} 48. Kc1 {[%emt 0:00:03]} Qf1+ {[%emt 0:00:06]} 1/2-1/2

[Event "Cracovia Festival-A 2023"]
[Site "Krakow"]
[Date "2023.12.29"]
[Round "3.26"]
[White "Kyc, Jerzy"]
[Black "Zdybel, Przemyslaw"]
[Result "0-1"]
[ECO "C07"]
[WhiteElo "2304"]
[BlackElo "2180"]
[Annotator "ChessBase"]
[PlyCount "102"]
[EventDate "2023.12.24"]
[EventType "swiss"]
[EventCountry "POL"]
[SourceTitle "playchess.com"]
[Source "ChessBase"]
[SourceQuality "1"]
[TimeControl "40/5400+30:1800+30"]

1. e4 {[%emt 0:00:12]} e6 {[%emt 0:00:06]} 2. d4 {[%emt 0:00:05]} d5 {[%emt 0:00:05]} 3. Nd2 {[%emt 0:00:13]} c5 {[%emt 0:00:06]} 4. dxc5 {[%emt 0:01:18]} Bxc5 {[%emt 0:00:20]} 5. Bd3 {[%emt 0:00:04]} Nc6 {[%emt 0:01:05]} 6. Ngf3 {[%emt 0:01:17]} Nf6 {[%emt 0:00:10]} 7. O-O {[%emt 0:02:29]} Qc7 {[%emt 0:14:37]} 8. a3 {[%emt 0:03:13]} a5 {[%emt 0:08:21]} 9. Qe2 {[%emt 0:04:38]} h6 {[%emt 0:16:46]} 10. e5 {[%emt 0:26:36]} Nd7 {[%emt 0:05:35]} 11. Re1 {[%emt 0:00:46]} Be7 {[%emt 0:06:32]} 12. b3 {[%emt 0:16:10]} Nc5 {[%emt 0:03:06]} 13. Bb5 {[%emt 0:03:23]} O-O {[%emt 0:00:06]} 14. Bb2 {[%emt 0:03:34]} Na7 {[%emt 0:02:20]} 15. Nd4 {[%emt 0:01:07]} Nxb5 {[%emt 0:00:40]} 16. Nxb5 {[%emt 0:00:01]} Qd7 {[%emt 0:00:54]} 17. a4 {[%emt 0:02:43]} b6 {[%emt 0:04:13]} 18. Qh5 {[%emt 0:08:57]} Ba6 {[%emt 0:05:51]} 19. Nd4 {[%emt 0:00:21]} Kh7 {[%emt 0:01:30]} 20. Rad1 {[%emt 0:01:13]} Rad8 {[%emt 0:02:54]} 21. N2f3 {[%emt 0:04:00]} Ne4 {[%emt 0:01:53]} 22. c4 {[%emt 0:02:11]} Bb4 {[%emt 0:01:34]} 23. Re3 {[%emt 0:02:09]} Bc5 {[%emt 0:04:31]} 24. cxd5 {[%emt 0:00:23]} exd5 {[%emt 0:00:09]} 25. Ree1 {[%emt 0:09:22]} Bc8 {[%emt 0:03:48]} 26. h3 {[%emt 0:01:12]} f6 {[%emt 0:03:36]} 27. exf6 {[%emt 0:02:56]} Rxf6 {[%emt 0:02:36]} 28. Bc1 {[%emt 0:01:28]} Qf7 {[%emt 0:02:21]} 29. Qxf7 {[%emt 0:02:14]} Rxf7 {[%emt 0:00:02]} 30. Be3 {[%emt 0:00:41]} Re8 {[%emt 0:00:48]} 31. Nb5 {[%emt 0:00:30]} Rd7 {[%emt 0:04:21]} 32. Bxc5 {[%emt 0:00:28]} bxc5 {[%emt 0:00:02]} 33. Rc1 {[%emt 0:00:32]} Ba6 {[%emt 0:02:20]} 34. Rxc5 {[%emt 0:00:30]} Nxc5 {[%emt 0:00:24]} 35. Rxe8 {[%emt 0:00:01]} Bxb5 {[%emt 0:00:12]} 36. axb5 {[%emt 0:00:04]} Nxb3 {[%emt 0:00:05]} 37. Ne5 {[%emt 0:00:59]} Rb7 {[%emt 0:00:08]} 38. h4 {[%emt 0:00:29]} h5 {[%emt 0:01:06]} 39. Nf3 {[%emt 0:00:59]} Rxb5 {[%emt 0:01:18]} 40. Re6 {[%emt 0:00:00]} Rb8 {[%emt 0:00:00]} 41. Ra6 {[%emt 0:04:21]} Rd8 {[%emt 0:24:49]} 42. Ng5+ {[%emt 0:09:36]} Kg8 {[%emt 0:00:02]} 43. Ne6 {[%emt 0:01:29]} Re8 {[%emt 0:03:06]} 44. Nf4 {[%emt 0:10:24]} d4 {[%emt 0:00:56]} 45. Rb6 {[%emt 0:00:23]} a4 {[%emt 0:00:47]} 46. Nd3 {[%emt 0:02:16]} Rc8 {[%emt 0:01:20]} 47. Kf1 {[%emt 0:01:45]} Rc3 {[%emt 0:00:24]} 48. Ke2 {[%emt 0:00:40]} a3 {[%emt 0:01:52]} 49. Rb8+ {[%emt 0:02:15]} Kh7 {[%emt 0:00:09]} 50. Nb4 {[%emt 0:01:17]} d3+ {[%emt 0:00:28]} 51. Nxd3 {[%emt 0:00:29]} a2 {[%emt 0:00:10]} 0-1

[Event "Cracovia Festival-A 2023"]
[Site "Krakow"]
[Date "2023.12.29"]
[Round "3.27"]
[White "Buchenau, Frank"]
[Black "Kowalczyk, Pawel"]
[Result "1-0"]
[ECO "B01"]
[WhiteElo "2135"]
[BlackElo "2295"]
[Annotator "ChessBase"]
[PlyCount "82"]
[EventDate "2023.12.24"]
[EventType "swiss"]
[EventCountry "POL"]
[SourceTitle "playchess.com"]
[Source "ChessBase"]
[SourceQuality "1"]
[TimeControl "40/5400+30:1800+30"]

1. e4 {[%emt 0:00:01]} d5 {[%emt 0:03:49]} 2. exd5 {[%emt 0:00:07]} Nf6 {[%emt 0:00:04]} 3. Nf3 {[%emt 0:00:18]} Nxd5 {[%emt 0:00:04]} 4. d4 {[%emt 0:00:14]} g6 {[%emt 0:00:27]} 5. Bc4 {[%emt 0:00:39]} Bg7 {[%emt 0:00:05]} 6. O-O {[%emt 0:00:19]} O-O {[%emt 0:00:04]} 7. Re1 {[%emt 0:01:59]} Bg4 {[%emt 0:00:29]} 8. c3 {[%emt 0:01:02]} Nc6 {[%emt 0:01:28]} 9. h3 {[%emt 0:01:42]} Bf5 {[%emt 0:00:07]} 10. Nbd2 {[%emt 0:02:59]} Nb6 {[%emt 0:00:17]} 11. Bb3 {[%emt 0:04:50]} Na5 {[%emt 0:09:47]} 12. Bc2 {[%emt 0:02:16]} Bxc2 {[%emt 0:01:28]} 13. Qxc2 {[%emt 0:00:04]} Nac4 {[%emt 0:00:03]} 14. Nxc4 {[%emt 0:03:03]} Nxc4 {[%emt 0:00:04]} 15. Qe2 {[%emt 0:01:21]} Qd5 {[%emt 0:00:05]} 16. Qxe7 {[%emt 0:04:28]} Rac8 {[%emt 0:00:02]} 17. b3 {[%emt 0:10:37]} Nd6 {[%emt 0:00:06]} 18. Ba3 {[%emt 0:05:23]} Rfe8 {[%emt 0:00:57]} 19. Qd7 {[%emt 0:03:25]} Red8 {[%emt 0:00:05]} 20. Qg4 {[%emt 0:01:11]} f5 {[%emt 0:00:30]} 21. Qh4 {[%emt 0:10:57]} Ne4 {[%emt 0:00:52]} 22. Ng5 {[%emt 0:01:26]} Nf6 {[%emt 0:00:06]} 23. Re7 {[%emt 0:15:32]} Rd7 {[%emt 0:01:42]} 24. Rae1 {[%emt 0:02:57]} h6 {[%emt 0:00:09]} 25. Nf7 {[%emt 0:07:41]} Qxf7 {[%emt 0:01:33]} 26. Rxf7 {[%emt 0:00:09]} Kxf7 {[%emt 0:00:02]} 27. Qf4 {[%emt 0:01:50]} b6 {[%emt 0:00:05]} 28. g4 {[%emt 0:02:45]} fxg4 {[%emt 0:00:06]} 29. hxg4 {[%emt 0:00:28]} Re8 {[%emt 0:00:33]} 30. Rxe8 {[%emt 0:01:35]} Kxe8 {[%emt 0:00:03]} 31. c4 {[%emt 0:01:37]} g5 {[%emt 0:00:44]} 32. Qf5 {[%emt 0:01:25]} Kd8 {[%emt 0:00:57]} 33. d5 {[%emt 0:00:24]} Ne8 {[%emt 0:00:04]} 34. Qe6 {[%emt 0:01:17]} a5 {[%emt 0:00:35]} 35. Kg2 {[%emt 0:00:58]} Nd6 {[%emt 0:00:25]} 36. Qg8+ {[%emt 0:00:17]} Ne8 {[%emt 0:00:01]} 37. f3 {[%emt 0:00:50]} Be5 {[%emt 0:01:31]} 38. Bf8 {[%emt 0:01:29]} Bg7 {[%emt 0:02:14]} 39. Bxg7 {[%emt 0:01:29]} Rxg7 {[%emt 0:00:05]} 40. Qe6 {[%emt 0:00:00]} Rh7 {[%emt 0:00:00]} 41. a3 {[%emt 0:01:29]} Nd6 {[%emt 0:00:23]} 1-0

[Event "Cracovia Festival-A 2023"]
[Site "Krakow"]
[Date "2023.12.29"]
[Round "3.28"]
[White "Lukasiewicz, Krzysztof"]
[Black "Gorkiewicz, Mateusz"]
[Result "1-0"]
[ECO "D00"]
[WhiteElo "2290"]
[BlackElo "2147"]
[Annotator "ChessBase"]
[PlyCount "68"]
[EventDate "2023.12.24"]
[EventType "swiss"]
[EventCountry "POL"]
[SourceTitle "playchess.com"]
[Source "ChessBase"]
[SourceQuality "1"]
[TimeControl "40/5400+30:1800+30"]

1. d4 {[%emt 0:00:10]} d5 {[%emt 0:00:14]} 2. Bf4 {[%emt 0:00:13]} Nf6 {[%emt 0:00:16]} 3. e3 {[%emt 0:00:05]} c5 {[%emt 0:00:15]} 4. Nf3 {[%emt 0:00:06]} Nc6 {[%emt 0:00:20]} 5. Nbd2 {[%emt 0:00:05]} cxd4 {[%emt 0:00:43]} 6. exd4 {[%emt 0:00:05]} Bf5 {[%emt 0:00:41]} 7. c3 {[%emt 0:06:39]} e6 {[%emt 0:00:26]} 8. Be2 {[%emt 0:01:49]} Bd6 {[%emt 0:00:33]} 9. Bxd6 {[%emt 0:00:05]} Qxd6 {[%emt 0:00:05]} 10. O-O {[%emt 0:00:05]} h6 {[%emt 0:04:32]} 11. Re1 {[%emt 0:03:49]} O-O {[%emt 0:00:18]} 12. Nb3 {[%emt 0:00:16]} Rab8 {[%emt 0:16:25]} 13. a4 {[%emt 0:06:55]} Rfc8 {[%emt 0:11:06]} 14. h3 {[%emt 0:05:23]} a6 {[%emt 0:02:54]} 15. Bd3 {[%emt 0:10:03]} Bxd3 {[%emt 0:03:14]} 16. Qxd3 {[%emt 0:00:41]} Ne4 {[%emt 0:09:25]} 17. Nfd2 {[%emt 0:04:47]} Nxd2 {[%emt 0:01:48]} 18. Qxd2 {[%emt 0:00:20]} b5 {[%emt 0:03:38]} 19. Nc5 {[%emt 0:02:10]} a5 {[%emt 0:06:10]} 20. axb5 {[%emt 0:02:06]} Rxb5 {[%emt 0:00:13]} 21. Nd3 {[%emt 0:00:18]} Ne7 {[%emt 0:03:31]} 22. Re2 {[%emt 0:02:33]} Rcb8 {[%emt 0:02:07]} 23. f4 {[%emt 0:03:26]} Qd8 {[%emt 0:06:26]} 24. Qe1 {[%emt 0:07:08]} Qc7 {[%emt 0:16:03]} 25. g4 {[%emt 0:02:40]} Nc8 {[%emt 0:01:33]} 26. Rg2 {[%emt 0:11:14]} Nd6 {[%emt 0:01:21]} 27. Qe5 {[%emt 0:01:09]} Qd8 {[%emt 0:04:01]} 28. Rf1 {[%emt 0:05:40]} Nc4 {[%emt 0:01:43]} 29. Qe1 {[%emt 0:03:58]} Nxb2 {[%emt 0:02:41]} 30. Ne5 {[%emt 0:00:03]} R8b7 {[%emt 0:01:56]} 31. g5 {[%emt 0:11:51]} hxg5 {[%emt 0:00:26]} 32. fxg5 {[%emt 0:00:04]} Nc4 {[%emt 0:00:52]} 33. g6 {[%emt 0:02:11]} Nxe5 {[%emt 0:00:28]} 34. Qxe5 {[%emt 0:00:04]} R5b6 1-0

[Event "Cracovia Festival-A 2023"]
[Site "Krakow"]
[Date "2023.12.29"]
[Round "3.29"]
[White "Antolak, Julia"]
[Black "Jedraszek, Pawel"]
[Result "1-0"]
[ECO "E73"]
[WhiteElo "2287"]
[BlackElo "2124"]
[Annotator "ChessBase"]
[PlyCount "63"]
[EventDate "2023.12.24"]
[EventType "swiss"]
[EventCountry "POL"]
[SourceTitle "playchess.com"]
[Source "ChessBase"]
[SourceQuality "1"]
[TimeControl "40/5400+30:1800+30"]

1. d4 {[%emt 0:00:04]} Nf6 {[%emt 0:00:17]} 2. c4 {[%emt 0:00:06]} g6 {[%emt 0:00:26]} 3. Nc3 {[%emt 0:00:10]} Bg7 {[%emt 0:00:27]} 4. e4 {[%emt 0:00:09]} d6 {[%emt 0:00:17]} 5. Be2 {[%emt 0:00:14]} O-O {[%emt 0:00:35]} 6. Be3 {[%emt 0:00:06]} c5 {[%emt 0:02:06]} 7. d5 {[%emt 0:00:46]} e6 {[%emt 0:01:29]} 8. Nf3 {[%emt 0:00:16]} exd5 {[%emt 0:01:04]} 9. cxd5 {[%emt 0:00:08]} b5 {[%emt 0:14:34]} 10. e5 {[%emt 0:00:25]} Ng4 {[%emt 0:00:33]} 11. Bg5 {[%emt 0:00:07]} f6 {[%emt 0:03:29]} 12. exf6 {[%emt 0:02:05]} Bxf6 {[%emt 0:00:45]} 13. Bxf6 {[%emt 0:01:00]} Qxf6 {[%emt 0:00:09]} 14. Nxb5 {[%emt 0:12:01]} Na6 {[%emt 0:06:57]} 15. O-O {[%emt 0:03:42]} Bb7 {[%emt 0:10:21]} 16. Qb3 {[%emt 0:10:18]} Rae8 {[%emt 0:10:02]} 17. Bc4 {[%emt 0:06:44]} Re4 {[%emt 0:08:08]} 18. h3 {[%emt 0:10:30]} Qf4 {[%emt 0:05:06]} 19. Nc3 {[%emt 0:02:45]} Rxc4 {[%emt 0:07:47]} 20. Qxb7 {[%emt 0:02:56]} Nb4 {[%emt 0:01:43]} 21. hxg4 {[%emt 0:02:40]} Qxg4 {[%emt 0:00:25]} 22. Rae1 {[%emt 0:06:56]} Rcf4 {[%emt 0:06:28]} 23. Nh2 {[%emt 0:01:48]} Qh5 {[%emt 0:00:57]} 24. Qd7 {[%emt 0:02:04]} Nd3 {[%emt 0:04:33]} 25. Re8 {[%emt 0:05:11]} Qh6 {[%emt 0:06:23]} 26. Qe6+ {[%emt 0:05:14]} Kh8 {[%emt 0:01:39]} 27. Ne4 {[%emt 0:01:25]} Rxe8 {[%emt 0:02:24]} 28. Qxe8+ {[%emt 0:00:05]} Rf8 {[%emt 0:00:04]} 29. Qe7 {[%emt 0:00:55]} Nf4 {[%emt 0:00:28]} 30. Ng5 {[%emt 0:00:29]} Ne2+ {[%emt 0:00:37]} 31. Qxe2 {[%emt 0:00:19]} Qxg5 {[%emt 0:00:06]} 32. Qe6 {[%emt 0:00:35]} 1-0

[Event "Cracovia Festival-A 2023"]
[Site "Krakow"]
[Date "2023.12.29"]
[Round "3.30"]
[White "Ashwath, R.."]
[Black "Grochol, Kamil"]
[Result "1-0"]
[ECO "A06"]
[WhiteElo "2284"]
[BlackElo "2101"]
[Annotator "ChessBase"]
[PlyCount "59"]
[EventDate "2023.12.24"]
[EventType "swiss"]
[EventCountry "POL"]
[SourceTitle "playchess.com"]
[Source "ChessBase"]
[SourceQuality "1"]
[TimeControl "40/5400+30:1800+30"]

1. Nf3 {[%emt 0:02:23]} d5 {[%emt 0:01:29]} 2. g3 {[%emt 0:00:35]} Nf6 {[%emt 0:00:26]} 3. Bg2 {[%emt 0:00:04]} e6 {[%emt 0:00:30]} 4. O-O {[%emt 0:00:05]} Be7 {[%emt 0:00:05]} 5. d3 {[%emt 0:00:07]} O-O {[%emt 0:00:41]} 6. Bf4 {[%emt 0:00:15]} c5 {[%emt 0:02:25]} 7. a4 {[%emt 0:00:13]} Nc6 {[%emt 0:01:04]} 8. e4 {[%emt 0:00:39]} dxe4 {[%emt 0:07:29]} 9. dxe4 {[%emt 0:00:13]} Qxd1 {[%emt 0:01:01]} 10. Rxd1 {[%emt 0:00:07]} Nxe4 {[%emt 0:01:11]} 11. Ne5 {[%emt 0:01:39]} Nxe5 {[%emt 0:01:17]} 12. Bxe5 {[%emt 0:09:05]} Bf6 {[%emt 0:13:12]} 13. f4 {[%emt 0:02:24]} Bxe5 {[%emt 0:01:11]} 14. fxe5 {[%emt 0:00:11]} f5 {[%emt 0:00:45]} 15. Bxe4 {[%emt 0:16:03]} fxe4 {[%emt 0:00:56]} 16. a5 {[%emt 0:00:13]} Kf7 {[%emt 0:19:40]} 17. Nc3 {[%emt 0:10:33]} Ke7 {[%emt 0:01:03]} 18. Nxe4 {[%emt 0:04:45]} Rf5 {[%emt 0:00:42]} 19. Nxc5 {[%emt 0:01:22]} Rxe5 {[%emt 0:00:08]} 20. b4 {[%emt 0:00:55]} Re2 {[%emt 0:04:45]} 21. c4 {[%emt 0:02:42]} Rc2 {[%emt 0:06:34]} 22. Rd4 {[%emt 0:01:50]} e5 {[%emt 0:01:08]} 23. Re1 {[%emt 0:11:21]} Kf6 {[%emt 0:09:39]} 24. Ne4+ {[%emt 0:10:21]} Kg6 {[%emt 0:14:01]} 25. Rd6+ {[%emt 0:08:11]} Kf5 {[%emt 0:01:04]} 26. Rd8 {[%emt 0:01:24]} a6 {[%emt 0:06:08]} 27. Nd6+ {[%emt 0:01:10]} Ke6 {[%emt 0:00:03]} 28. Nxc8 {[%emt 0:02:11]} Rxc4 {[%emt 0:00:04]} 29. Rd6+ {[%emt 0:00:04]} Kf5 {[%emt 0:00:18]} 30. Nb6 {[%emt 0:00:15]} 1-0

[Event "Cracovia Festival-A 2023"]
[Site "Krakow"]
[Date "2023.12.29"]
[Round "3.31"]
[White "Ernst, Robert"]
[Black "Krzyzanowski, Patryk"]
[Result "1-0"]
[ECO "E47"]
[WhiteElo "2271"]
[BlackElo "2102"]
[Annotator "ChessBase"]
[PlyCount "65"]
[EventDate "2023.12.24"]
[EventType "swiss"]
[EventCountry "POL"]
[SourceTitle "playchess.com"]
[Source "ChessBase"]
[SourceQuality "1"]
[TimeControl "40/5400+30:1800+30"]

1. d4 {[%emt 0:00:23]} Nf6 {[%emt 0:00:16]} 2. c4 {[%emt 0:00:11]} e6 {[%emt 0:00:13]} 3. Nc3 {[%emt 0:00:09]} Bb4 {[%emt 0:00:17]} 4. e3 {[%emt 0:00:12]} O-O {[%emt 0:00:59]} 5. Bd3 {[%emt 0:00:14]} c5 {[%emt 0:01:40]} 6. Nge2 {[%emt 0:00:43]} b6 {[%emt 0:03:16]} 7. d5 {[%emt 0:01:37]} exd5 {[%emt 0:08:01]} 8. cxd5 {[%emt 0:00:02]} Bb7 {[%emt 0:00:15]} 9. O-O {[%emt 0:20:31]} Bxc3 {[%emt 0:15:42]} 10. Nxc3 {[%emt 0:00:11]} d6 {[%emt 0:00:17]} 11. e4 {[%emt 0:02:32]} a6 {[%emt 0:07:17]} 12. a4 {[%emt 0:03:00]} Nbd7 {[%emt 0:01:37]} 13. Bg5 {[%emt 0:06:30]} Qc7 {[%emt 0:05:06]} 14. b3 {[%emt 0:02:36]} Rfe8 {[%emt 0:02:26]} 15. f4 {[%emt 0:10:32]} b5 {[%emt 0:34:43]} 16. axb5 {[%emt 0:06:46]} axb5 {[%emt 0:00:26]} 17. Rxa8 {[%emt 0:00:09]} Bxa8 {[%emt 0:02:08]} 18. Bxf6 {[%emt 0:08:02]} Nxf6 {[%emt 0:03:42]} 19. Bxb5 {[%emt 0:00:22]} Rb8 {[%emt 0:03:18]} 20. Bc4 {[%emt 0:09:26]} Qa5 {[%emt 0:01:21]} 21. Qd3 {[%emt 0:09:28]} Qa7 {[%emt 0:01:32]} 22. Qe3 {[%emt 0:08:04]} Ng4 {[%emt 0:01:03]} 23. Qe2 {[%emt 0:01:38]} Nh6 {[%emt 0:01:31]} 24. Kh1 {[%emt 0:01:38]} Re8 {[%emt 0:01:09]} 25. Qf3 {[%emt 0:01:30]} f6 {[%emt 0:00:36]} 26. e5 {[%emt 0:03:48]} dxe5 {[%emt 0:01:16]} 27. fxe5 {[%emt 0:00:02]} Rxe5 {[%emt 0:00:28]} 28. d6+ {[%emt 0:01:53]} Kh8 {[%emt 0:00:43]} 29. d7 {[%emt 0:00:26]} Qb8 {[%emt 0:00:25]} 30. Rd1 {[%emt 0:00:49]} Ng8 {[%emt 0:02:20]} 31. Qd3 {[%emt 0:01:58]} Qb7 {[%emt 0:00:52]} 32. Rg1 {[%emt 0:00:36]} Re1 {[%emt 0:01:00]} 33. Qd5 {[%emt 0:00:26]} 1-0